bitfinex-derivatives/quotes_SOLF0:USTF0_20250624
["timestamp","ask_amount","ask_price","bid_price","bid_amount"]
[1750752098741,7.91969889,143.91,143.82,2.3434]
[1750752099037,5.16389865,143.93,143.82,2.3434]
[1750752099232,7.91708305,143.92,143.82,2.3434]
[1750752099431,7.86545494,143.95,143.82,2.3434]
[1750752099734,22.9822,143.98,143.82,2.3434]
[1750752099735,7.9179541,143.94,143.82,2.3434]
[1750752100034,7.9179541,143.93,143.82,2.3434]
[1750752100237,2.70155629,143.95,143.82,2.3434]
[1750752100439,7.91407962,143.94,143.82,2.3434]
[1750752100627,7.91407962,143.93,143.82,2.3434]
[1750752100833,7.86545494,143.97,143.82,2.3434]
[1750752101045,7.9147786,143.96,143.82,2.3434]
[1750752101334,5.16389865,143.97,143.82,2.3434]
[1750752101335,2.70009646,143.97,143.82,2.3434]
[1750752101535,7.91370247,143.98,143.82,2.3434]
[1750752101738,2.7003715,143.98,143.82,2.3434]
[1750752101945,5.2145508,143.97,143.82,2.3434]
[1750752102133,7.91537061,143.98,143.82,2.3434]
[1750752102440,7.91541897,143.98,143.82,2.3434]
[1750752102939,7.91541897,144.0,143.84,8.56942367]
[1750752103141,7.916498,144.02,143.85,2.2664]
[1750752103339,7.916498,144.01,143.85,2.2664]
[1750752103641,7.916498,144.0,143.85,2.2664]
[1750752103841,2.70189884,144.01,143.85,2.2664]
[1750752104028,7.91211107,144.0,143.85,2.2664]
[1750752104233,7.91211107,144.01,143.85,2.2664]
[1750752104433,7.91211107,144.0,143.85,2.2664]
[1750752104635,7.91211107,144.02,143.85,2.2664]
[1750752104836,7.91211107,144.01,143.85,2.2664]
[1750752105042,7.91211107,144.0,143.85,2.2664]
[1750752105244,2.70023038,143.99,143.85,2.2664]
[1750752105432,7.91129825,144.0,143.85,2.2664]
[1750752105638,5.21196659,144.0,143.85,2.2664]
[1750752105834,7.9121295,144.0,143.85,2.2664]
[1750752106339,2.69992038,143.99,143.85,2.2664]
[1750752106537,2.353,144.01,143.85,2.2664]
[1750752106538,7.91018536,144.0,143.85,2.2664]
[1750752106739,2.353,144.01,143.85,2.2664]
[1750752106936,7.90798075,144.0,143.85,2.2664]
[1750752107244,7.9068285,144.02,143.85,10.83582367]
[1750752107445,2.69881017,144.01,143.85,10.83582367]
[1750752108245,7.9068285,144.01,143.85,10.83582367]
[1750752108445,7.9068285,144.02,143.85,10.83582367]
[1750752108644,7.30836213,144.03,143.85,10.83582367]
[1750752108645,7.9073457,144.01,143.85,10.83582367]
[1750752108846,7.9073457,144.02,143.85,10.83582367]
[1750752109144,7.9073457,144.01,143.85,10.83582367]
[1750752109349,5.20801833,144.02,143.85,10.83582367]
[1750752109547,7.91804182,144.01,143.85,10.83582367]
[1750752109736,5.23186006,144.02,143.85,10.83582367]
[1750752109940,7.9420251,144.01,143.85,10.83582367]
[1750752110144,5.23186006,144.02,143.85,8.56942367]
[1750752110351,7.94176727,144.01,143.86,2.2586]
[1750752110551,7.94176727,144.0,143.87,2.2725]
[1750752110843,5.23186006,144.02,143.88,2.3986]
[1750752111050,7.94331105,144.01,143.88,2.3986]
[1750752111352,5.23186006,144.02,143.88,2.3986]
[1750752111549,7.94408311,144.01,143.88,2.3986]
[1750752111750,7.3252891,144.03,143.88,2.3986]
[1750752111751,2.71185615,144.0,143.88,2.3986]
[1750752112055,7.94371621,144.01,143.88,2.3986]
[1750752112243,2.71185615,144.0,143.88,2.3986]
[1750752112439,7.3252891,144.03,143.88,2.3986]
[1750752112440,5.23447503,144.01,143.88,2.3986]
[1750752112646,5.23482412,144.02,143.88,2.3986]
[1750752112844,7.94635749,144.01,143.88,2.3986]
[1750752113150,5.23482412,144.02,143.88,2.3986]
[1750752113348,2.71115678,144.01,143.88,2.3986]
[1750752113555,2.1553,144.03,143.88,2.3986]
[1750752113556,5.23482412,144.02,143.88,2.3986]
[1750752113744,2.71295349,144.01,143.88,10.96802367]
[1750752113946,2.71295349,144.02,143.88,10.96802367]
[1750752114152,2.71295349,144.01,143.88,10.96802367]
[1750752114349,7.94777761,144.02,143.88,2.3986]
[1750752114557,2.71295349,144.01,143.88,2.3986]
[1750752114749,7.38832412,144.04,143.88,2.3986]
[1750752114953,7.94758622,144.03,143.88,2.3986]
[1750752115156,7.94758622,144.02,143.88,2.3986]
[1750752115458,2.7127621,144.01,143.88,2.3986]
[1750752115752,5.24433981,144.02,143.88,2.3986]
[1750752115953,2.71376789,144.01,143.88,2.3986]
[1750752116153,5.24575366,144.02,143.88,2.3986]
[1750752116356,2.71461529,144.01,143.88,2.3986]
[1750752116652,2.71461529,144.0,143.88,2.3986]
[1750752116854,5.24575366,144.01,143.88,2.3986]
[1750752117052,2.71506661,144.0,143.88,2.3986]
[1750752117248,5.24575366,144.02,143.88,2.3986]
[1750752117446,7.96129163,144.01,143.88,2.3986]
[1750752117650,7.96129163,144.0,143.88,2.3986]
[1750752117851,2.71553797,143.99,143.88,2.3986]
[1750752118052,5.24575366,144.01,143.88,2.3986]
[1750752118250,7.96752674,144.0,143.88,2.3986]
[1750752118555,2.72187323,143.99,143.88,2.3986]
[1750752118759,5.25406019,144.01,143.88,2.3986]
[1750752119052,7.97634649,144.0,143.88,2.3986]
[1750752119360,2.7222863,143.99,143.88,2.3986]
[1750752119557,5.25406019,144.01,143.88,2.3986]
[1750752119757,7.9779158,144.0,143.88,2.3986]
[1750752119959,2.72385561,143.99,143.88,2.3986]
[1750752120253,2.72404199,143.98,143.88,2.3986]
[1750752120443,5.25406019,144.0,143.88,2.3986]
[1750752120643,10.38426945,143.99,143.88,2.3986]
[1750752120857,7.97846945,143.98,143.88,2.3986]
[1750752121051,7.97854593,143.97,143.88,2.3986]
[1750752121251,7.97854593,143.96,143.87,2.2725]
[1750752121451,7.97854593,143.95,143.84,2.2733]
[1750752121664,7.97854593,143.94,143.8,4.7927]
[1750752121957,10.38434593,143.93,143.8,4.7927]
[1750752122157,10.13214593,143.92,143.8,4.7927]
[1750752122460,2.72448574,143.91,143.8,4.7927]
[1750752122648,2.72237402,143.9,143.8,4.7927]
[1750752122850,7.40766019,143.92,143.8,4.7927]
[1750752123049,2.72235662,143.91,143.8,4.7927]
[1750752123246,2.72235662,143.9,143.8,4.7927]
[1750752123452,7.40766019,143.92,143.8,4.7927]
[1750752123652,2.72233202,143.91,143.8,4.7927]
[1750752123852,2.72233202,143.9,143.8,4.7927]
[1750752124057,2.72233202,143.89,143.8,4.7927]
[1750752124263,2.72233202,143.9,143.8,4.7927]
[1750752124466,5.24808438,143.91,143.8,4.7927]
[1750752124653,2.72132108,143.9,143.8,4.7927]
[1750752124853,5.24808438,143.91,143.8,4.7927]
[1750752125065,2.72122705,143.9,143.8,4.7927]
[1750752125253,5.24808438,143.91,143.8,4.7927]
[1750752125560,2.72054194,143.9,143.79,2.2733]
[1750752125863,2.72054194,143.89,143.78,12.57886889]
[1750752126061,2.72054194,143.88,143.78,12.57886889]
[1750752126251,7.96862632,143.9,143.78,12.57886889]
[1750752126456,2.72054194,143.89,143.78,12.57886889]
[1750752126651,2.72054194,143.88,143.78,12.57886889]
[1750752126857,2.72054194,143.87,143.78,12.57886889]
[1750752127053,2.72074054,143.88,143.78,12.57886889]
[1750752127249,5.24808438,143.89,143.78,12.57886889]
[1750752127454,2.72066767,143.88,143.78,12.57886889]
[1750752127752,2.72066767,143.87,143.78,12.57886889]
[1750752127955,7.96875205,143.89,143.78,12.57886889]
[1750752128162,7.96875205,143.88,143.78,12.57886889]
[1750752128359,10.35665205,143.87,143.78,12.57886889]
[1750752128653,15.30767141,143.86,143.67,3.44604014]
[1750752128951,13.15237141,143.85,143.65,8.56942367]
[1750752129153,8.43105123,143.86,143.64,1.21032954]
[1750752129154,6.27575123,143.78,143.64,1.21032954]
[1750752129355,13.09503495,143.77,143.6,2.3115]
[1750752129553,6.27575123,143.75,143.47,8.56942367]
[1750752129765,6.27575123,143.72,143.48,6.9854]
[1750752130062,13.09503495,143.71,143.48,6.9854]
[1750752130266,7.93896519,143.7,143.53,1.21110879]
[1750752130465,12.59654997,143.82,143.48,6.9854]
[1750752130466,7.93896519,143.72,143.48,6.9854]
[1750752130659,7.93896519,143.74,143.48,6.9854]
[1750752130869,7.93896519,143.73,143.48,6.9854]
[1750752131055,7.93896519,143.78,143.49,8.56942367]
[1750752131364,7.93896519,143.8,143.51,8.56942367]
[1750752131563,5.2263128,143.79,143.5,9.78122832]
[1750752131760,7.93896519,143.81,143.51,8.56942367]
[1750752131965,7.92397441,143.82,143.53,8.56942367]
[1750752132171,12.59654997,143.93,143.5,14.08665054]
[1750752132172,7.92397441,143.83,143.54,8.56942367]
[1750752132362,13.19901663,143.85,143.55,7.1602]
[1750752132562,7.92397441,143.84,143.55,7.1602]
[1750752132761,5.2263128,143.83,143.55,7.1602]
[1750752132964,5.2263128,143.82,143.55,7.1602]
[1750752133164,7.92397441,143.84,143.55,7.1602]
[1750752133468,7.92397441,143.85,143.55,7.1602]
[1750752133770,5.2263128,143.84,143.55,7.1602]
[1750752133976,5.2263128,143.83,143.55,7.1602]
[1750752134261,5.2263128,143.84,143.55,7.1602]
[1750752134468,5.2263128,143.83,143.55,7.1602]
[1750752134661,6.27575123,143.87,143.55,7.1602]
[1750752134868,13.13661262,143.86,143.55,7.1602]
[1750752135069,19.41236385,143.85,143.55,7.1602]
[1750752135367,13.13661262,143.84,143.55,7.1602]
[1750752135568,19.41236385,143.83,143.55,7.1602]
[1750752135765,6.27575123,143.81,143.55,7.1602]
[1750752136072,13.13661262,143.8,143.55,7.1602]
[1750752136271,13.13661262,143.79,143.55,7.1602]
[1750752136465,5.18387359,143.78,143.55,7.1602]
[1750752136667,5.18387359,143.77,143.55,7.1602]
[1750752136866,10.445703,143.79,143.55,7.1602]
[1750752137062,5.18387359,143.78,143.55,7.1602]
[1750752137373,7.87478321,143.77,143.55,7.1602]
[1750752137556,6.27575123,143.79,143.55,7.1602]
[1750752137557,13.11607098,143.76,143.55,7.1602]
[1750752137758,10.42516136,143.75,143.55,7.1602]
[1750752137962,5.18387359,143.74,143.55,7.1602]
[1750752138171,5.18387359,143.73,143.5,1.21180465]
[1750752138468,5.18387359,143.75,143.51,6.9919]
[1750752138672,8.39769998,143.83,143.51,6.9919]
[1750752138673,5.18387359,143.76,143.51,6.9919]
[1750752138970,5.18387359,143.75,143.51,6.9919]
[1750752139167,10.42516136,143.77,143.51,6.9919]
[1750752139361,10.42516136,143.76,143.51,6.9919]
[1750752139564,26.01387359,143.75,143.51,4.6308]
[1750752139757,31.25516136,143.74,143.51,4.6308]
[1750752139964,10.42516136,143.73,143.52,2.3611]
[1750752140162,5.14501402,143.72,143.52,2.3611]
[1750752140363,10.3669006,143.74,143.52,2.3611]
[1750752140565,5.14501402,143.73,143.52,2.3611]
[1750752140760,5.14501402,143.72,143.52,2.3611]
[1750752140966,5.14501402,143.73,143.52,2.3611]
[1750752141168,5.14501402,143.75,143.52,2.3611]
[1750752141367,10.3669006,143.76,143.52,2.3611]
[1750752141671,20.83,143.78,143.52,2.3611]
[1750752141870,10.3669006,143.77,143.52,2.3611]
[1750752142073,5.14501402,143.76,143.52,2.3611]
[1750752142275,5.14501402,143.77,143.52,2.3611]
[1750752142479,5.14501402,143.76,143.52,2.3611]
[1750752142767,5.14501402,143.77,143.52,2.3611]
[1750752143174,5.14501402,143.79,143.52,2.3611]
[1750752143570,5.14501402,143.8,143.52,2.3611]
[1750752143767,5.14501402,143.79,143.52,2.3611]
[1750752143967,359.27575123,143.85,143.52,2.3611]
[1750752143968,5.14501402,143.78,143.52,2.3611]
[1750752144270,20.83,143.8,143.52,2.3611]
[1750752144473,5.14501402,143.79,143.52,2.3611]
[1750752144673,5.14501402,143.78,143.52,2.3611]
[1750752145277,20.83,143.83,143.52,2.3611]
[1750752146279,20.83,143.82,143.52,2.3611]
[1750752147367,20.83,143.84,143.52,2.3611]
[1750752148077,27.10575123,143.82,143.52,2.3611]
[1750752148376,5.36955697,143.81,143.52,2.3611]
[1750752148578,26.19955697,143.81,143.52,2.3611]
[1750752148779,5.36955697,143.8,143.52,2.3611]
[1750752149978,26.19955697,143.81,143.52,2.3611]
[1750752150170,5.36955697,143.8,143.52,2.3611]
[1750752151085,20.83,143.8,143.52,2.3611]
[1750752151377,26.19955697,143.79,143.52,2.3611]
[1750752151577,5.36955697,143.78,143.52,2.3611]
[1750752151781,26.19955697,143.78,143.52,2.3611]
[1750752151974,26.19955697,143.77,143.52,2.3611]
[1750752152171,20.83,143.77,143.52,2.3611]
[1750752152779,26.14886627,143.76,143.52,2.3611]
[1750752152978,20.83,143.76,143.52,2.3611]
[1750752153478,5.39260867,143.77,143.52,2.3611]
[1750752153673,20.83,143.75,143.52,2.3611]
[1750752153878,5.39260867,143.74,143.52,2.3611]
[1750752154180,5.39260867,143.73,143.52,2.3611]
[1750752154378,5.39260867,143.72,143.52,2.3611]
[1750752154676,5.32018328,143.71,143.52,2.3611]
[1750752154980,5.32018328,143.7,143.52,2.3611]
[1750752155278,5.32018328,143.69,143.52,2.3611]
[1750752155477,5.32018328,143.68,143.52,2.3611]
[1750752155673,20.83,143.76,143.52,2.3611]
[1750752155974,5.33676046,143.75,143.52,2.3611]
[1750752156182,5.33676046,143.74,143.52,2.3611]
[1750752156374,5.33676046,143.73,143.52,2.3611]
[1750752156574,5.33676046,143.72,143.52,2.3611]
[1750752156872,5.33676046,143.71,143.52,2.3611]
[1750752157073,5.33676046,143.7,143.52,2.3611]
[1750752157379,5.33676046,143.69,143.52,2.3611]
[1750752157682,5.33676046,143.68,143.52,2.3611]
[1750752157877,20.83,143.77,143.52,2.3611]
[1750752158083,10.50964166,143.76,143.52,2.3611]
[1750752158283,10.50964166,143.75,143.52,2.3611]
[1750752158483,5.33716639,143.74,143.52,2.3611]
[1750752158673,5.33716639,143.73,143.52,2.3611]
[1750752158874,5.33716639,143.72,143.52,2.3611]
[1750752159177,5.33716639,143.71,143.52,2.3611]
[1750752159384,5.33716639,143.7,143.52,2.3611]
[1750752159576,5.33716639,143.69,143.52,2.3611]
[1750752159776,5.33716639,143.68,143.52,2.3611]
[1750752159982,5.17247527,143.74,143.52,2.3611]
[1750752160183,5.34425198,143.73,143.52,2.3611]
[1750752160484,5.34425198,143.72,143.52,2.3611]
[1750752160685,5.34425198,143.71,143.52,23.2011]
[1750752160878,5.17935066,143.78,143.52,23.2011]
[1750752161184,10.52727577,143.77,143.52,23.2011]
[1750752161376,10.52727577,143.76,143.52,23.2011]
[1750752161677,5.34792511,143.75,143.52,23.2011]
[1750752161882,5.34792511,143.74,143.52,23.2011]
[1750752162078,5.34792511,143.73,143.52,23.2011]
[1750752162276,5.34792511,143.72,143.52,23.2011]
[1750752162582,5.34792511,143.71,143.52,375.2011]
[1750752162776,2.64364359,143.82,143.52,396.0311]
[1750752162979,10.57777612,143.81,143.52,396.0311]
[1750752163182,10.57777612,143.8,143.52,396.0311]
[1750752163484,10.57777612,143.79,143.52,396.0311]
[1750752163687,10.59482979,143.78,143.52,408.90594589]
[1750752163876,8.39769998,143.88,143.52,408.90594589]
[1750752163877,10.59482979,143.77,143.52,408.90594589]
[1750752164077,5.37190161,143.76,143.52,408.90594589]
[1750752164277,5.37190161,143.75,143.52,408.90594589]
[1750752164477,5.37190161,143.74,143.54,41.67]
[1750752164684,18.53362786,143.83,143.54,406.54484589]
[1750752164882,13.23843392,143.82,143.54,406.54484589]
[1750752165083,143.221,143.94,143.54,406.54484589]
[1750752165084,13.23843392,143.81,143.54,406.54484589]
[1750752165285,10.59479033,143.8,143.54,406.54484589]
[1750752165584,10.59479033,143.79,143.56,41.67]
[1750752165779,12.9972784,143.84,143.58,20.84]
[1750752165988,10.35363481,143.83,143.6,20.84]
[1750752166179,10.35421142,143.82,143.6,20.84]
[1750752166490,10.3796811,143.81,143.6,20.84]
[1750752166788,7.64788899,143.85,143.6,20.84]
[1750752166982,12.88634486,143.84,143.6,20.84]
[1750752167186,6.27575123,143.9,143.6,20.84]
[1750752167383,19.23534185,143.89,143.59,356.5639]
[1750752167582,45.30379772,143.88,143.59,4.5639]
[1750752167790,6.27575123,143.85,143.59,4.5639]
[1750752167980,12.95959062,143.84,143.59,4.5639]
[1750752168290,12.95959062,143.83,143.59,4.5639]
[1750752168484,12.95959062,143.82,143.59,4.5639]
[1750752168681,12.95959062,143.81,143.59,4.5639]
[1750752168882,12.95959062,143.8,143.59,4.5639]
[1750752169083,6.27575123,143.83,143.59,4.5639]
[1750752169084,12.95959062,143.79,143.59,4.5639]
[1750752169381,12.98438015,143.78,143.59,4.5639]
[1750752169687,12.98438015,143.77,143.59,4.5639]
[1750752169888,7.6549396,143.76,143.59,4.5639]
[1750752170081,7.6549396,143.75,143.59,4.5639]
[1750752170276,5.32941297,143.79,143.59,4.5639]
[1750752170487,13.02716601,143.78,143.59,4.5639]
[1750752170689,13.02716601,143.77,143.59,4.5639]
[1750752170882,7.69775304,143.76,143.59,4.5639]
[1750752171090,7.69775304,143.75,143.59,4.5639]
[1750752171286,7.69732921,143.74,143.59,4.5639]
[1750752171488,5.33513294,143.77,143.59,4.5639]
[1750752171786,13.03281346,143.76,143.59,4.5639]
[1750752171988,13.03281346,143.75,143.59,4.5639]
[1750752172183,7.69768052,143.74,143.59,4.5639]
[1750752172490,7.69768052,143.73,143.59,4.5639]
[1750752172686,5.33912824,143.77,143.59,4.5639]
[1750752172883,2.69326468,143.72,143.59,4.5639]
[1750752173081,7.71084005,143.72,143.59,4.5639]
[1750752173282,6.27575123,143.79,143.59,4.5639]
[1750752173482,5.34806515,143.78,143.59,4.5639]
[1750752173689,5.34806515,143.77,143.59,4.5639]
[1750752173884,4.64941505,143.79,143.59,4.5639]
[1750752174088,5.36634642,143.78,143.59,4.5639]
[1750752174282,5.36634642,143.77,143.59,4.5639]
[1750752174485,13.07720245,143.76,143.59,4.5639]
[1750752174688,7.71085603,143.75,143.59,4.5639]
[1750752174884,2.69300644,143.74,143.59,4.5639]
[1750752175087,5.36485979,143.78,143.59,4.5639]
[1750752175281,7.71101884,143.77,143.59,4.5639]
[1750752175482,7.71101884,143.76,143.59,25.4039]
[1750752175793,5.36559198,143.79,143.59,25.4039]
[1750752175994,13.08012319,143.78,143.59,25.4039]
[1750752176199,7.71453121,143.77,143.59,25.4039]
[1750752176393,5.3656258,143.8,143.59,25.4039]
[1750752176591,13.0812904,143.79,143.59,25.4039]
[1750752176789,7.7156646,143.78,143.59,25.4039]
[1750752176989,7.7148513,143.77,143.59,25.4039]
[1750752177291,10.38272625,143.8,143.59,25.4039]
[1750752177493,13.07872168,143.79,143.59,25.4039]
[1750752177691,7.71430009,143.78,143.59,25.4039]
[1750752177893,2.69599543,143.77,143.59,25.4039]
[1750752178194,7.71404451,143.8,143.62,8.59491799]
[1750752178395,7.71404451,143.79,143.63,2.2512]
[1750752178695,5.01778529,143.83,143.63,2.2512]
[1750752178898,7.71405063,143.82,143.63,2.2512]
[1750752179100,7.71405063,143.81,143.63,2.2512]
[1750752179400,2.69626534,143.8,143.63,2.2512]
[1750752179595,2.69626534,143.79,143.63,2.2512]
[1750752179896,2.69720809,143.81,143.64,8.59491799]
[1750752180100,2.69720809,143.83,143.65,2.4183]
[1750752180292,2.69720809,143.82,143.66,2.252]
[1750752180487,5.01778529,143.86,143.66,2.252]
[1750752180690,7.71383994,143.85,143.66,2.252]
[1750752180892,27.10575123,143.82,143.66,2.252]
[1750752181091,7.71383994,143.81,143.66,2.252]
[1750752181297,7.71383994,143.8,143.66,2.252]
[1750752181496,2.6955692,143.79,143.66,2.252]
[1750752181698,2.6955692,143.78,143.66,2.252]
[1750752181992,7.71335449,143.81,143.66,2.252]
[1750752182188,2.6955692,143.8,143.66,2.252]
[1750752182384,2.6955692,143.79,143.66,2.252]
[1750752182597,2.6955692,143.78,143.66,2.252]
[1750752182799,2.69472794,143.77,143.66,2.252]
[1750752183000,2.69472794,143.8,143.66,2.252]
[1750752183198,2.69472794,143.79,143.66,2.252]
[1750752183399,2.69472794,143.78,143.66,2.252]
[1750752183586,2.69472794,143.77,143.66,2.252]
[1750752183898,28.53970258,143.8,143.6,2.3384]
[1750752184100,28.53970258,143.8,143.6,4.6972]
[1750752184101,2.69472794,143.79,143.6,4.6972]
[1750752184399,2.69472794,143.78,143.6,4.6972]
[1750752184698,2.69472794,143.77,143.6,4.6972]
[1750752184890,2.69472794,143.78,143.6,4.6972]
[1750752185199,2.69472794,143.77,143.6,4.6972]
[1750752185498,2.69472794,143.78,143.6,4.6972]
[1750752185694,2.69472794,143.77,143.6,13.29211799]
[1750752185896,2.69472794,143.79,143.6,13.29211799]
[1750752186104,2.69472794,143.78,143.6,13.29211799]
[1750752186298,2.69472794,143.77,143.6,13.29211799]
[1750752186491,2.69472794,143.79,143.6,13.29211799]
[1750752186693,2.69472794,143.78,143.6,4.6972]
[1750752186896,2.69472794,143.77,143.6,4.6972]
[1750752187101,8.39769998,143.82,143.6,4.6972]
[1750752187102,2.69148647,143.8,143.61,8.59491799]
[1750752187399,2.69148647,143.83,143.64,8.59491799]
[1750752187587,2.69148647,143.84,143.66,8.59491799]
[1750752187795,2.69148647,143.85,143.68,8.59491799]
[1750752187989,2.69148647,143.87,143.68,8.59491799]
[1750752188193,2.69148647,143.88,143.69,8.59491799]
[1750752188495,2.69189744,143.89,143.7,8.59491799]
[1750752188695,2.69189744,143.9,143.71,8.59491799]
[1750752188891,2.69189744,143.91,143.71,8.59491799]
[1750752189087,2.69189744,143.92,143.73,8.59491799]
[1750752189292,2.69189744,143.91,143.74,4.4881]
[1750752189497,2.69189744,143.92,143.75,2.3362]
[1750752189703,2.69054518,143.92,143.75,2.3362]
[1750752189904,2.69054518,143.92,143.75,10.93111799]
[1750752190202,2.69054518,143.93,143.75,10.93111799]
[1750752190404,126.42560004,143.94,143.75,10.93111799]
[1750752190704,126.42560004,143.94,143.76,8.59491799]
[1750752190904,12.59654997,144.04,143.77,8.59491799]
[1750752190905,6.27575123,144.01,143.77,8.59491799]
[1750752191106,2.68551463,144.0,143.77,8.59491799]
[1750752191402,2.68551463,143.99,143.77,8.59491799]
[1750752191601,2.68551463,143.98,143.77,8.59491799]
[1750752191805,2.68551463,143.97,143.75,10.93111799]
[1750752192005,2.68551463,143.99,143.75,10.93111799]
[1750752192197,2.68551463,143.98,143.76,8.59491799]
[1750752192396,2.68551463,143.97,143.75,10.93111799]
[1750752192599,2.68551463,143.99,143.75,10.93111799]
[1750752192801,2.68551463,143.98,143.75,2.3362]
[1750752193103,2.68551463,143.99,143.75,2.3362]
[1750752193304,2.68551463,143.98,143.75,2.3362]
[1750752193503,2.68551463,143.97,143.75,2.3362]
[1750752193704,2.68551463,143.98,143.75,2.3362]
[1750752194004,2.68551463,143.99,143.75,2.3362]
[1750752194202,2.68551463,143.98,143.75,2.3362]
[1750752194401,7.73835647,144.0,143.75,2.3362]
[1750752194707,7.73835647,143.99,143.75,2.3362]
[1750752194997,2.68551463,143.98,143.75,2.3362]
[1750752195204,2.68551463,143.97,143.75,2.3362]
[1750752195405,7.76339556,143.98,143.75,2.3362]
[1750752195607,2.68551463,143.97,143.75,2.3362]
[1750752196309,13.03326653,143.98,143.75,2.3362]
[1750752196511,7.9553856,143.97,143.75,2.3362]
[1750752196806,2.68551463,143.97,143.75,2.3362]
[1750752197408,2.68551463,143.96,143.75,2.3362]
[1750752197610,7.76339556,143.95,143.75,2.3362]
[1750752197816,2.68551463,143.94,143.75,2.3362]
[1750752198004,5.07788093,143.93,143.74,2.2679]
[1750752198202,7.76904794,143.92,143.74,2.2679]
[1750752198515,7.76904794,143.91,143.74,2.2679]
[1750752198714,7.77338782,143.9,143.74,2.2679]
[1750752198911,2.69212956,143.89,143.74,2.2679]
[1750752199103,2.69212956,143.9,143.74,2.2679]
[1750752199519,2.69212956,143.89,143.74,2.2679]
[1750752199715,13.04185278,143.91,143.74,2.2679]
[1750752200014,13.04185278,143.9,143.74,2.2679]
[1750752200217,13.04185278,143.89,143.74,2.2679]
[1750752200525,7.77338782,143.92,143.74,2.2679]
[1750752200816,7.77338782,143.91,143.74,2.2679]
[1750752201009,7.78115844,143.9,143.74,2.2679]
[1750752201211,2.69212956,143.89,143.74,2.2679]
[1750752201514,7.78115844,143.91,143.74,2.2679]
[1750752201716,7.78115844,143.9,143.74,2.2679]
[1750752202016,2.69212956,143.89,143.74,2.2679]
[1750752202317,7.78115844,143.91,143.74,2.2679]
[1750752202515,7.78115844,143.9,143.74,2.2679]
[1750752202716,2.69212956,143.89,143.74,2.2679]
[1750752203016,2.69212956,143.88,143.74,2.2679]
[1750752203207,7.78115844,143.9,143.74,2.2679]
[1750752203409,7.78115844,143.89,143.74,2.2679]
[1750752203615,2.69212956,143.88,143.74,2.2679]
[1750752203803,7.75802892,143.91,143.74,2.2679]
[1750752204010,7.75802892,143.92,143.74,2.2679]
[1750752204313,2.68869363,143.91,143.74,2.2679]
[1750752204518,2.68869363,143.9,143.74,2.2679]
[1750752204720,7.75802892,143.93,143.74,2.2679]
[1750752205018,7.75802892,143.92,143.74,2.2679]
[1750752205220,2.68869363,143.91,143.74,2.2679]
[1750752205517,27.10575123,143.96,143.74,2.2679]
[1750752205518,7.75802892,143.94,143.74,2.2679]
[1750752205719,7.7582381,143.93,143.74,2.2679]
[1750752206017,7.7582381,143.92,143.74,2.2679]
[1750752206212,2.68869363,143.91,143.74,2.2679]
[1750752206414,2.68869363,143.9,143.74,2.2679]
[1750752206627,7.7582381,143.93,143.74,2.2679]
[1750752206814,7.7582381,143.92,143.74,2.2679]
[1750752207122,7.7582381,143.95,143.74,2.2679]
[1750752207318,7.7582381,143.94,143.74,2.2679]
[1750752207618,7.7582381,143.93,143.74,2.2679]
[1750752207821,2.68869363,143.92,143.74,2.2679]
[1750752208120,7.7582381,143.95,143.74,2.2679]
[1750752208417,7.7582381,143.94,143.74,2.2679]
[1750752208623,7.7582381,143.93,143.74,2.2679]
[1750752208821,2.68869363,143.92,143.74,2.2679]
[1750752209119,5.06954447,143.96,143.74,2.2679]
[1750752209120,7.7582381,143.95,143.74,2.2679]
[1750752209322,7.7582381,143.94,143.74,2.2679]
[1750752209520,7.76367527,143.93,143.74,2.2679]
[1750752209718,2.6941308,143.92,143.74,2.2679]
[1750752209925,7.76367527,143.91,143.74,2.2679]
[1750752210123,2.6941308,143.9,143.74,2.2679]
[1750752210315,7.76367527,143.93,143.74,2.2679]
[1750752210622,7.76367527,143.92,143.74,2.2679]
[1750752210818,28.59367527,143.91,143.74,2.2679]
[1750752211019,33.85426282,143.9,143.74,2.2679]
[1750752211224,13.02426282,143.89,143.74,2.2679]
[1750752211426,7.76367527,143.88,143.74,2.2679]
[1750752211624,7.76367527,143.87,143.74,2.2679]
[1750752211820,7.76367527,143.86,143.74,2.2679]
[1750752212021,2.6941308,143.85,143.72,2.4171]
[1750752212229,7.77297927,143.87,143.72,2.4171]
[1750752212424,2.69281096,143.86,143.72,2.4171]